bitfinex-derivatives/quotes_ETHF0:USTF0_20250604
["timestamp","ask_amount","ask_price","bid_price","bid_amount"]
[1748995728980,3.9761,2601.4,2601.3,0.00576679]
[1748995734088,3.2078,2601.4,2601.3,0.77409679]
[1748995734388,3.9761,2601.4,2601.3,0.00576679]
[1748995735188,3.9761,2601.4,2601.3,0.77409679]
[1748995735487,3.9761,2601.4,2601.3,0.00576679]
[1748995738584,3.2078,2601.7,2601.4,0.76827]
[1748995738793,3.2078,2601.7,2601.4,1.41807]
[1748995738988,0.76824,2601.6,2601.5,0.83531602]
[1748995739791,0.76824,2601.6,2601.5,0.06704602]
[1748995742886,2.05974,2601.6,2601.5,0.06704602]
[1748995744296,3.2078,2601.7,2601.6,0.76824]
[1748995744895,0.76824,2601.6,2601.5,0.06704602]
[1748995748892,3.97604,2601.6,2601.5,0.06704602]
[1748995752190,2.59094,2601.9,2601.8,0.76818]
[1748995752191,3.07106679,2601.9,2601.8,0.76818]
[1748995752390,3.849,2604.2,2601.8,25.6838]
[1748995752391,6.27886679,2602.9,2601.8,25.6838]
[1748995752693,0.76797,2602.5,2602.2,3.97585]
[1748995752892,0.6095,2602.7,2602.3,0.614]
[1748995753085,0.76787,2602.9,2602.6,0.76794]
[1748995753284,3.2078,2603.2,2602.5,3.2078]
[1748995753594,0.76784,2603.0,2602.6,2.04273]
[1748995753795,0.76782,2603.1,2602.6,2.04273]
[1748995754095,0.76782,2603.1,2602.7,0.76791]
[1748995754394,3.2078,2603.2,2602.6,1.2748]
[1748995754701,0.7678,2603.1,2602.7,0.76789]
[1748995754890,0.7678,2603.1,2602.7,0.7679]
[1748995755089,0.7678,2603.1,2602.6,1.2748]
[1748995755392,4.5233,2603.2,2602.9,0.76783]
[1748995755590,0.76782,2603.1,2602.7,0.76789]
[1748995755790,2.08332,2603.1,2602.7,0.76789]
[1748995755993,2.08331,2603.1,2602.8,0.76788]
[1748995756388,1.3155,2603.1,2602.8,0.76788]
[1748995756690,3.97558,2603.2,2602.8,0.76786]
[1748995756691,3.2078,2603.2,2602.8,0.76786]
[1748995757197,3.2078,2603.2,2602.6,5.9648]
[1748995757491,3.2078,2603.5,2602.9,3.2078]
[1748995757696,2.02156,2603.6,2603.2,0.76775]
[1748995757892,0.76769,2603.5,2603.2,0.76775]
[1748995758197,0.76771,2603.4,2603.1,0.76778]
[1748995758393,1.3233,2603.7,2603.2,3.2078]
[1748995758598,0.76755,2604.0,2603.7,0.76762]
[1748995758899,3.2078,2604.6,2603.9,3.2078]
[1748995759095,0.6196,2604.5,2604.2,3.2078]
[1748995759298,0.76737,2604.6,2604.3,0.76743]
[1748995759493,0.6459,2604.7,2604.2,7.8978]
[1748995759693,0.76743,2604.4,2604.3,4.69]
[1748995760494,0.76743,2604.4,2604.0,2.07022]
[1748995760495,4.449,2604.6,2604.0,1.3027]
[1748995760795,0.76746,2604.3,2604.0,2.07023]
[1748995761001,0.76743,2604.4,2604.1,5.4565]
[1748995761395,0.76745,2604.3,2604.1,4.689]
[1748995761595,0.76743,2604.4,2604.1,4.689]
[1748995762099,0.76746,2604.3,2604.1,4.689]
[1748995762903,1.2412,2604.6,2604.1,4.689]
[1748995763109,4.449,2604.6,2604.1,5.4565]
[1748995763400,0.7674,2604.5,2604.2,0.76747]
[1748995763899,0.01058776,2604.2,2604.1,8.66429]
[1748995764608,0.01058776,2604.2,2604.1,8.6643]
[1748995764801,0.01058776,2604.2,2604.1,7.8968]
[1748995765108,0.01058776,2604.2,2604.1,7.8958]
[1748995765307,0.01058776,2604.2,2604.1,8.6633]
[1748995766603,0.01058776,2604.2,2604.1,13.6633]
[1748995768404,0.01058776,2604.2,2604.1,8.6633]
[1748995768600,0.01058776,2604.2,2604.1,7.8958]
[1748995768800,0.77805776,2604.2,2604.1,7.8958]
[1748995769107,0.77805776,2604.2,2603.7,1.268]
[1748995769108,0.01058776,2604.2,2603.8,3.2078]
[1748995769507,0.76752,2604.1,2603.9,0.76756]
[1748995769709,0.76752,2604.1,2603.8,3.2078]
[1748995769710,0.01058776,2604.2,2603.8,4.5261]
[1748995769907,0.76754,2604.0,2603.8,4.5261]
[1748995770103,0.76756,2603.9,2603.8,3.2078]
[1748995770303,0.01058776,2604.2,2603.8,3.2078]
[1748995770513,0.01058776,2604.2,2603.7,4.687]
[1748995770514,0.76759,2603.8,2603.7,4.687]
[1748995770907,0.76762,2603.7,2603.6,0.00576679]
[1748995771304,0.76761,2603.8,2603.6,0.00576679]
[1748995771517,0.76762,2603.7,2603.6,0.00576679]
[1748995772011,0.76762,2603.7,2602.7,3.2078]
[1748995772012,0.76774,2603.3,2602.7,3.2078]
[1748995772512,9.687,2603.3,2602.5,4.687]
[1748995772708,0.76796,2602.6,2602.2,3.97585]
[1748995772907,0.76794,2602.7,2602.5,3.2078]
[1748995773112,0.6594,2602.8,2602.3,0.77378679]
[1748995773305,0.6594,2602.8,2602.3,0.00576679]
[1748995773618,0.6594,2602.8,2602.5,0.76797]
[1748995773812,0.00576679,2602.9,2602.3,1.30196679]
[1748995774318,0.00576679,2602.9,2602.6,3.97574]
[1748995774613,0.77362679,2602.9,2602.6,7.8948]
[1748995774817,0.76794,2602.7,2602.3,6.05601281]
[1748995775014,0.00576679,2602.9,2602.3,1.36901281]
[1748995775218,0.76796,2602.6,2602.3,0.07281281]
[1748995775716,0.76795,2602.6,2602.3,0.07281281]
[1748995775904,0.76799,2602.5,2602.3,0.07281281]
[1748995776107,0.76796,2602.6,2602.3,0.07281281]
[1748995776302,1.2436,2602.8,2602.3,0.07281281]
[1748995776507,0.76798,2602.5,2602.3,0.07281281]
[1748995776715,0.76801,2602.4,2602.3,0.07281281]
[1748995777713,2.04551,2602.4,2602.3,0.07281281]
[1748995781920,2.03339,2602.5,2602.3,0.07281281]
[1748995782915,5.46163679,2602.9,2602.6,0.76793]
[1748995783914,4.69376679,2602.9,2602.4,0.6569]
[1748995784217,5.91216679,2602.9,2602.4,0.6569]
[1748995784721,0.76801,2602.4,2602.3,0.07281281]
[1748995791018,2.63681,2602.4,2602.3,0.07281281]
[1748995794629,0.76818,2601.9,2601.7,3.2078]
[1748995794824,0.76818,2601.8,2601.7,3.2078]
[1748995795722,0.76824,2601.6,2601.5,4.69376679]
[1748995795920,0.76824,2601.6,2601.5,0.00576679]
[1748995796127,3.97604,2601.6,2601.5,0.00576679]
[1748995803936,0.76839,2601.1,2601.0,3.2078]
[1748995804634,0.6541,2601.3,2600.2,3.97643]
[1748995804635,1.92107,2601.0,2600.2,3.97643]
[1748995804936,5.13475679,2600.9,2600.3,2.07666679]
[1748995805139,0.76855,2600.6,2600.4,2.10808]
[1748995805341,3.21356679,2600.9,2600.4,1.3395]
[1748995805528,0.76855,2600.6,2600.4,1.3395]
[1748995805736,0.76857,2600.5,2600.4,1.3395]
[1748995806548,0.7686,2600.4,2600.3,1.30806679]
[1748995806746,0.7686,2600.4,2600.3,0.00576679]
[1748995811041,0.7688,2599.7,2599.6,4.768]
[1748995811739,0.76883,2599.6,2599.5,1.3259]
[1748995813246,0.76881,2599.7,2599.5,2.09476]
[1748995813451,3.2078,2599.8,2599.6,1.3179]
[1748995813741,0.7688,2599.7,2599.6,1.3179]
[1748995814140,3.2078,2599.8,2599.7,0.7688]
[1748995814344,0.76873,2600.0,2599.8,0.76877]
[1748995814538,0.76873,2600.0,2599.9,1.2738]
[1748995815644,0.76873,2600.0,2599.6,3.97661]
[1748995815645,0.7688,2599.7,2599.6,3.2078]
[1748995815840,0.76879,2599.8,2599.6,5.25042]
[1748995816047,0.7688,2599.7,2599.6,3.2078]
[1748995816434,0.7688,2599.7,2599.6,8.2078]
[1748995817347,0.7688,2599.7,2599.6,3.2078]
[1748995818454,0.7688,2599.7,2599.6,3.97663]
[1748995819144,0.7688,2599.7,2599.6,3.2078]
[1748995819641,0.7688,2599.7,2599.6,3.97663]
[1748995820048,0.7688,2599.7,2599.6,4.04367602]
[1748995820249,0.7688,2599.7,2599.6,3.27484602]
[1748995821446,0.7688,2599.7,2599.6,0.06704602]
[1748995821751,0.7688,2599.7,2599.6,0.83587602]
[1748995822654,0.7688,2599.7,2599.6,0.06704602]
[1748995824652,2.6673,2599.7,2599.6,0.06704602]
[1748995828848,2.6673,2599.7,2598.7,1.92275]
[1748995828849,1.92229,2599.4,2598.6,3.2078]
[1748995829054,0.76909,2598.8,2598.6,0.6615]
[1748995829252,5.13022,2599.2,2598.6,0.6615]
[1748995829450,0.76909,2598.8,2598.6,1.43062]
[1748995829855,0.76909,2598.8,2598.6,0.6615]
[1748995830154,0.7691,2598.7,2598.6,0.6615]
[1748995830756,5.13047,2598.9,2598.4,4.74676679]
[1748995830958,3.97696,2598.5,2598.4,0.00576679]
[1748995831859,3.2078,2598.9,2598.4,0.00576679]
[1748995832248,3.2078,2598.9,2598.8,0.76907]
[1748995832448,0.76904,2598.9,2598.6,0.76911]
[1748995832657,0.76904,2598.9,2598.7,0.76909]
[1748995832957,0.76907,2598.8,2598.6,1.44071]
[1748995833158,0.76906,2598.9,2598.6,1.44071]
[1748995833459,0.76906,2598.9,2598.7,0.76907]
[1748995835758,0.00576679,2599.0,2598.7,0.76907]
[1748995835958,0.76907,2598.9,2598.7,0.76907]
[1748995837559,0.77479679,2599.0,2598.8,0.76907]
[1748995837857,0.00576679,2599.0,2598.6,0.73864602]
[1748995838252,0.00576679,2599.0,2598.9,0.76904]
[1748995839050,0.00576679,2599.0,2598.9,5.76904]
[1748995839255,0.00576679,2599.0,2598.9,7.00164]
[1748995839660,6.79e-06,2599.0,2598.9,7.00164]
[1748995844864,6.79e-06,2599.0,2598.9,2.00164]
[1748995845952,6.79e-06,2599.0,2598.9,0.76904]
[1748995846558,6.79e-06,2599.0,2598.9,5.50704]
[1748995847568,0.76901679,2599.0,2598.9,4.738]
[1748995847866,1.33010679,2599.0,2598.7,3.2078]
[1748995848068,2.09912679,2599.0,2598.9,0.76904]
[1748995848361,6.79e-06,2599.0,2598.9,0.76904]
[1748995848568,0.76901679,2599.0,2598.9,0.76904]
[1748995849470,6.79e-06,2599.0,2598.9,0.76904]
[1748995850167,0.76901679,2599.0,2598.9,0.76904]
[1748995850474,0.76901679,2599.0,2598.9,0.83608602]
[1748995851871,0.76901679,2599.0,2598.9,0.06704602]
[1748995852466,0.76901679,2599.0,2598.9,0.83608602]
[1748995853171,6.79e-06,2599.0,2598.9,0.83608602]
[1748995853868,1.92186,2600.0,2598.9,8.27484602]
[1748995853869,3.2078,2599.6,2598.9,8.27484602]
[1748995854167,3.2078,2600.4,2599.7,1.92202]
[1748995854465,3.97641,2600.4,2600.2,0.76864]
[1748995854667,3.97641,2600.4,2600.2,0.76863]
[1748995854866,0.76864,2600.3,2599.8,7.2838]
[1748995855067,0.76864,2600.3,2600.0,0.00576679]
[1748995855467,3.97641,2600.4,2600.2,0.76863]
[1748995855667,0.76866,2600.2,2600.1,0.76868]
[1748995856666,0.76865,2600.3,2600.1,0.76868]
[1748995856867,0.76866,2600.2,2600.1,0.76868]
[1748995857071,0.76869,2600.1,2600.0,0.00576679]
[1748995858775,3.2078,2600.1,2600.0,0.77448679]
[1748995859266,3.97649,2600.1,2600.0,0.00576679]
[1748995859879,5.27389,2600.1,2600.0,0.00576679]
[1748995860372,3.2078,2600.1,2600.0,0.00576679]
[1748995860570,3.2078,2600.1,2600.0,0.77448679]
[1748995860571,3.97649,2600.1,2600.0,0.77448679]
[1748995860975,3.97649,2600.1,2600.0,0.00576679]
[1748995861573,5.27389,2600.1,2600.0,0.00576679]
[1748995863675,10.27389,2600.1,2600.0,0.00576679]
[1748995864571,4.5052,2600.1,2600.0,0.00576679]
[1748995864767,3.97649,2600.1,2600.0,0.00576679]
[1748995865773,3.97649,2600.1,2600.0,0.07281281]
[1748995866681,3.2078,2600.1,2600.0,0.07281281]
[1748995866976,3.97649,2600.1,2600.0,0.07281281]
[1748995867170,3.2078,2600.1,2600.0,0.07281281]
[1748995867672,3.97649,2600.1,2600.0,0.84153281]
[1748995867978,3.2078,2600.1,2600.0,0.84153281]
[1748995868481,3.97649,2600.1,2600.0,0.84153281]
[1748995869182,3.2078,2600.1,2600.0,0.84153281]
[1748995869683,3.97649,2600.1,2600.0,0.84153281]
[1748995870285,3.97649,2600.1,2600.0,0.07281281]
[1748995870805,5.89359,2600.1,2600.0,0.07281281]
[1748995872388,3.8791,2600.1,2600.0,0.84153281]
[1748995872589,3.2078,2600.1,2600.0,0.84153281]
[1748995873588,3.97649,2600.1,2600.0,0.84153281]
[1748995873990,3.2078,2600.1,2600.0,0.84153281]
[1748995874290,3.97649,2600.1,2600.0,0.84153281]
[1748995876183,3.2078,2600.1,2600.0,0.84153281]
[1748995876986,3.97649,2600.1,2600.0,0.84153281]
[1748995877587,3.2078,2600.1,2600.0,0.84153281]
[1748995878085,3.97649,2600.1,2600.0,0.84153281]
[1748995879791,3.97649,2600.1,2600.0,0.45673281]
[1748995879984,3.97649,2600.1,2600.0,0.52377883]
[1748995880192,3.2078,2600.1,2600.0,0.52377883]
[1748995880382,3.97649,2600.1,2600.0,0.52377883]
[1748995883489,3.97649,2600.1,2600.0,0.06704602]
[1748995883882,5.29159,2600.1,2600.0,0.06704602]
[1748995887095,8.36265679,2600.1,2600.0,0.06704602]
[1748995887494,8.36568702,2600.1,2600.0,0.06704602]
[1748995888691,3.2078,2600.1,2600.0,0.83576602]
[1748995889595,3.2078,2600.1,2600.0,2.06976602]
[1748995890189,0.5768,2600.2,2600.1,0.76869]
[1748995890589,1.34546,2600.2,2600.0,2.06974602]
[1748995890795,1.34546,2600.2,2600.0,0.83574602]
[1748995890990,3.97649,2600.1,2600.0,0.06704602]
[1748995891803,4.64829,2600.1,2600.0,0.06704602]
[1748995892194,6.64259,2600.1,2600.0,0.06704602]
[1748995894004,9.71668702,2600.1,2600.0,0.06704602]
[1748995894208,0.76874,2599.9,2599.8,0.00576679]
[1748995899708,0.76892,2599.3,2599.2,0.6127]
[1748995901214,3.97671,2599.4,2599.2,1.38165]
[1748995901906,3.97671,2599.4,2599.2,0.6127]
[1748995902299,0.76892,2599.3,2599.2,0.6127]
[1748995902707,1.34592,2599.3,2599.2,0.6127]
[1748995903005,0.76895,2599.2,2599.0,5.48284454]
[1748995903203,0.577,2599.3,2599.0,5.48284454]
[1748995903204,0.76898,2599.1,2599.0,4.71384454]
[1748995903404,3.97678,2599.1,2599.0,0.00384454]
[1748995906409,5.32088,2599.1,2599.0,0.00384454]
[1748995909315,5.32088,2599.1,2599.0,0.07089056]
[1748995911710,3.97678,2599.1,2599.0,0.07089056]
[1748995914706,3.97678,2599.1,2599.0,1.40269056]
[1748995915309,3.2078,2599.1,2599.0,1.40269056]
[1748995915614,0.577,2599.3,2599.2,0.76895]
[1748995916008,0.577,2599.3,2599.2,5.76895]
[1748995916712,3.2078,2600.1,2599.5,1.92217]
[1748995916906,0.76876,2599.9,2599.6,0.667]
[1748995917108,3.2078,2600.1,2599.6,2.76762]
[1748995917313,0.7688,2599.8,2599.6,2.76762]
[1748995917510,0.7688,2599.8,2599.7,1.3483]
[1748995917817,0.7688,2599.8,2599.7,2.1171]
[1748995918014,0.76876,2599.9,2599.7,2.11709]
[1748995918214,0.76876,2599.9,2599.8,1.3483]
[1748995918416,0.76873,2600.0,2599.8,2.11705]
[1748995918616,3.2078,2600.1,2599.8,1.3483]
[1748995918807,0.76874,2599.9,2599.8,1.3483]
[1748995919313,0.7688,2599.7,2599.6,0.667]
[1748995919512,0.76879,2599.8,2599.6,1.43583]
[1748995919711,0.76879,2599.8,2599.6,2.78413]
[1748995920010,0.76879,2599.8,2599.7,0.6284]
[1748995920215,0.89959,2599.8,2599.7,0.6284]
[1748995920406,0.7688,2599.7,2599.6,0.667]
[1748995920816,3.3386,2599.8,2599.7,0.7688]
[1748995921015,0.1308,2599.8,2599.7,2.0194]
[1748995921516,0.1308,2599.8,2599.7,1.2506]
[1748995921714,0.89957,2599.8,2599.7,1.2506]
[1748995922221,0.7688,2599.7,2599.6,0.667]
[1748995923217,3.3386,2599.8,2599.6,0.667]
[1748995923420,0.7688,2599.7,2599.6,1.9667]
[1748995924524,0.76889,2599.4,2599.3,0.6705]
[1748995926119,3.2078,2599.5,2599.3,0.6705]
[1748995926322,3.2078,2599.5,2599.3,2.73911]
[1748995926714,3.2078,2599.5,2599.4,0.76889]
[1748995926920,3.2078,2599.5,2599.4,2.04579]
[1748995927122,0.1308,2599.8,2599.7,0.7688]
[1748995927826,3.8234,2600.5,2600.1,0.76868]
[1748995928029,3.2078,2600.5,2600.2,1.9027]
[1748995928225,0.00576679,2600.6,2600.5,0.76857]
[1748995928426,3.2078,2601.2,2600.5,3.97637]
[1748995928624,3.2078,2601.2,2600.6,5.9699]
[1748995928819,3.2078,2601.2,2601.1,0.76839]
[1748995929027,3.2078,2601.2,2600.7,0.6258]
[1748995929222,3.2078,2601.2,2600.8,1.2769]
[1748995929529,0.00576679,2601.3,2601.2,0.76834]
[1748995929926,0.00576679,2601.3,2601.2,2.01604]
[1748995930730,0.00576679,2601.3,2601.2,1.2477]
[1748995931028,0.77409679,2601.3,2601.2,1.2477]
[1748995931328,0.76836,2601.2,2601.1,4.693]
[1748995931831,3.21356679,2601.3,2600.9,0.2632]
[1748995932025,0.76842,2601.0,2600.9,0.2632]
[1748995932923,3.97622,2601.0,2600.9,0.2632]
[1748995935829,0.76845,2600.9,2600.8,4.692]
[1748995936425,3.2078,2601.0,2600.9,0.76845]
[1748995936829,3.2078,2601.0,2600.9,2.04885]
[1748995937226,0.00576679,2601.3,2601.2,0.76836]
[1748995937730,0.00576679,2601.3,2601.2,5.45936]
[1748995938333,0.77409679,2601.3,2601.2,4.691]
[1748995938531,0.00576679,2601.3,2600.9,1.2804]
[1748995938831,0.77411679,2601.3,2601.1,0.76839]
[1748995939038,0.00576679,2601.3,2601.2,0.76836]
[1748995939719,0.00576679,2601.3,2601.2,1.43236]
[1748995940228,3.8214,2602.2,2601.3,1.92081]
[1748995940427,0.76819,2601.8,2601.7,0.7682]
[1748995940725,0.76821,2601.7,2601.4,6.0918]
[1748995940926,0.76823,2601.7,2601.5,0.76825]
[1748995941234,0.76827,2601.5,2601.4,4.743]
[1748995941530,0.7683,2601.4,2601.3,3.2078]
[1748995941733,3.2078,2601.6,2601.2,6.24239602]
[1748995941931,0.76833,2601.3,2601.2,5.47404602]
[1748995942434,0.76833,2601.3,2601.2,0.06704602]
[1748995943729,3.97613,2601.3,2601.2,0.06704602]
[1748995943931,3.2078,2601.3,2601.2,0.83540602]
[1748995944128,3.97613,2601.3,2601.2,0.06704602]
[1748995944739,8.97613,2601.3,2601.2,0.06704602]
[1748995945036,3.97613,2601.3,2601.2,0.06704602]
[1748995945229,9.59513,2601.3,2601.2,0.06704602]
[1748995946941,9.59513,2601.3,2601.2,6.02e-06]
[1748995949028,9.59513,2601.3,2600.7,0.00576679]
[1748995949029,0.76848,2600.8,2600.7,0.00576679]
[1748995949234,8.71928,2600.8,2600.7,0.00576679]
[1748995949439,13.71928,2600.8,2600.7,0.00576679]
[1748995950328,15.61098,2600.8,2600.7,0.00576679]
[1748995952345,10.61098,2600.8,2600.7,0.00576679]
[1748995952929,15.61098,2600.8,2600.7,6.79e-06]
[1748995953132,0.76877,2599.8,2599.7,108.2592]
[1748995953349,3.97657,2599.8,2599.7,108.2592]
[1748995954533,3.97657,2599.8,2599.7,103.5152]
[1748995954728,3.97657,2599.8,2599.7,102.8564]
[1748995955236,3.97657,2599.8,2599.7,102.92344602]
[1748995957129,3.2078,2599.8,2599.7,103.69224602]
[1748995957335,3.2078,2599.8,2599.7,105.66924602]
[1748995957937,3.2078,2599.8,2599.7,104.90044602]
[1748995958236,3.97657,2599.8,2599.7,103.54914602]
[1748995958441,3.97657,2599.8,2599.7,102.92344602]
[1748995959037,5.20587,2599.8,2599.7,102.92344602]
[1748995959838,5.20587,2599.8,2599.7,101.80721602]
[1748995960039,10.20587,2599.8,2599.7,101.80721602]
[1748995960340,5.20587,2599.8,2599.7,101.80721602]
[1748995962942,5.20587,2599.8,2599.7,79.65453832]
[1748995964745,10.20587,2599.8,2599.7,79.65453832]
[1748995967350,5.20587,2599.8,2599.7,79.65453832]
[1748995968047,28.18587,2599.8,2599.7,77.77271832]
[1748995968250,28.18587,2599.8,2599.7,75.76188832]
[1748995968544,28.18587,2599.8,2599.7,74.58404832]
[1748995969048,28.18587,2599.8,2599.7,73.54824832]
[1748995969243,28.18587,2599.8,2599.7,70.57392877]
[1748995969548,28.18587,2599.8,2599.7,70.40979835]
[1748995969755,28.18587,2599.8,2599.7,70.28347903]
[1748995969946,28.18587,2599.8,2599.7,69.99857993]
[1748995971160,28.18587,2599.8,2599.7,68.26166993]
[1748995971342,28.18587,2599.8,2599.7,64.27320992]
[1748995971543,28.18587,2599.8,2599.7,61.31805991]
[1748995971957,28.18587,2599.8,2599.7,60.93325991]
[1748995972649,28.25284479,2599.8,2599.7,60.93325991]
[1748995973657,28.25284479,2599.8,2599.7,60.06013991]
[1748995974157,28.25284479,2599.8,2599.7,59.27005991]
[1748995974355,28.25284479,2599.8,2599.7,55.66339708]
[1748995974556,28.25284479,2599.8,2599.7,54.40493708]
[1748995974755,28.25284479,2599.8,2599.7,53.19512708]
[1748995975056,28.25284479,2599.8,2599.7,50.72386708]
[1748995975252,28.25284479,2599.8,2599.7,49.31916708]
[1748995975550,10.27284479,2599.8,2599.7,34.83763234]
[1748995975752,34.60084479,2599.8,2599.7,27.33729465]
[1748995975952,34.60084479,2599.8,2599.7,23.07595465]
[1748995976148,34.60084479,2599.8,2599.7,14.39426899]
[1748995976349,34.60084479,2599.8,2599.7,12.03018899]
[1748995976549,34.60084479,2599.8,2599.7,10.10644616]
[1748995976747,34.60084479,2599.8,2599.7,4.34104616]
[1748995976945,7.14883,2599.6,2599.5,0.00576679]
[1748995977161,0.76901,2599.0,2598.9,0.6106]
[1748995977359,0.76913,2598.6,2598.5,1.2567]
[1748995977659,3.97693,2598.6,2598.5,1.9067]
[1748995978749,3.97693,2598.6,2598.5,2.1727]
[1748995979763,3.97693,2598.6,2598.5,0.266]
[1748995979961,8.73993,2598.6,2598.5,0.266]
[1748995980858,3.97693,2598.6,2598.5,0.266]
[1748995981160,3.2078,2598.6,2598.5,0.266]
[1748995981350,3.05806771,2599.1,2598.8,0.76907]
[1748995981351,3.2078,2598.9,2598.8,0.76907]
[1748995981659,3.2078,2598.9,2598.5,5.266]
[1748995981660,3.2078,2598.9,2598.7,0.7691]
[1748995981963,3.2078,2598.9,2598.8,2.07237]
[1748995982661,3.2078,2598.9,2598.8,1.3033]
[1748995983056,3.2078,2598.9,2598.8,2.07237]
[1748995983454,3.2078,2598.9,2598.8,1.3033]
[1748995983855,3.2078,2598.9,2598.8,2.07237]
[1748995984160,3.2078,2598.9,2598.8,1.3033]
[1748995984661,3.2078,2598.9,2598.8,1.37034602]
[1748995984960,3.2078,2598.9,2598.8,2.13941602]
[1748995985157,3.97684,2598.9,2598.8,1.37034602]
[1748995985461,3.2078,2598.9,2598.8,1.37034602]
[1748995985970,3.97684,2598.9,2598.8,1.37034602]
[1748995986456,3.97684,2598.9,2598.8,0.06704602]
[1748995991068,5.30474,2598.9,2598.8,6.02e-06]
[1748995993763,11.68474,2598.9,2598.8,6.02e-06]
[1748995997073,29.60074,2598.9,2598.8,6.02e-06]
[1748995997272,29.60074,2598.9,2598.8,0.26540602]
[1748995997677,29.60074,2598.9,2598.8,0.2654]
[1748995998868,0.76919,2598.4,2598.3,0.00384454]
[1748995999070,3.97699,2598.4,2598.3,0.00384454]
[1748995999574,5.90049,2598.4,2598.3,0.00384454]
[1748996000575,5.90049,2598.4,2598.3,4.54e-06]
[1748996003765,12.28049,2598.4,2598.3,4.54e-06]
[1748996010671,6.38,2598.1,2596.8,4.721]
[1748996010877,3.97737,2597.1,2597.0,1.9427]
[1748996011077,3.97737,2597.1,2597.0,1.3119]
[1748996011283,3.97737,2597.1,2596.2,4.78804602]
[1748996011284,0.76972,2596.7,2596.4,1.9427]
[1748996011477,3.2078,2596.7,2596.4,1.9427]
[1748996011677,3.97751,2596.7,2596.4,6.9427]
[1748996011973,3.2078,2596.7,2596.4,6.9427]
[1748996012182,0.76973,2596.6,2596.4,6.9427]
[1748996012480,3.2078,2596.7,2596.5,0.76975]
[1748996012682,3.2078,2596.7,2596.6,1.2606]
[1748996013074,3.2078,2596.7,2596.6,6.2606]
[1748996013978,3.2078,2596.7,2596.6,7.65512]
[1748996014185,0.00576679,2596.8,2596.7,0.76969]
[1748996014378,7.9288,2597.5,2596.7,0.76969]
[1748996014379,3.2078,2597.5,2596.7,5.13204]
[1748996014684,3.97727,2597.5,2597.3,0.7695]
[1748996014880,3.97727,2597.5,2597.4,2.6506]
[1748996015278,3.97727,2597.5,2597.4,7.6506]
[1748996016375,3.97727,2597.5,2597.4,2.6506]
[1748996017082,3.2078,2597.5,2597.4,2.6506]
[1748996017883,3.97725,2597.5,2597.4,2.6506]
[1748996019792,3.2078,2597.5,2597.4,2.6506]
[1748996020694,3.97725,2597.5,2597.4,2.6506]
[1748996022589,3.97725,2597.5,2597.4,1.9773]
[1748996024100,0.76951,2597.3,2597.2,0.00576679]
[1748996024293,0.76951,2597.4,2597.2,0.00576679]
[1748996024494,7.9288,2597.5,2597.2,1.23026679]
[1748996024891,0.76951,2597.3,2597.2,1.23026679]
[1748996025202,0.7695,2597.4,2597.2,1.23026679]
[1748996025501,0.76951,2597.3,2597.2,1.23026679]
[1748996025898,0.76951,2597.3,2597.2,0.00576679]
[1748996026794,0.76963,2596.9,2596.8,0.6357]
[1748996027004,3.97743,2596.9,2596.8,0.6357]
[1748996027188,3.2078,2596.9,2596.8,0.6357]
[1748996027901,3.97743,2596.9,2596.8,0.6357]
[1748996029497,3.97743,2596.9,2596.7,1.3017]
[1748996029498,0.76966,2596.8,2596.7,1.3017]
[1748996029702,0.76971,2596.7,2596.5,0.665]
[1748996030001,0.76972,2596.6,2596.5,0.665]
[1748996030693,3.2078,2596.6,2596.0,5.47988]
[1748996030893,0.76984,2596.3,2596.2,1.9383]
[1748996031505,0.76984,2596.3,2596.2,0.6676]
[1748996031702,0.76986,2596.2,2596.0,4.71]
[1748996031905,0.76986,2596.2,2596.0,0.6676]
[1748996032099,0.76987,2596.1,2596.0,0.6676]
[1748996033207,3.2078,2596.2,2596.0,0.6676]
[1748996033405,3.2078,2596.2,2595.4,3.2078]
[1748996033406,0.76988,2596.1,2595.8,0.76994]
[1748996033702,0.76991,2596.0,2595.8,0.76994]
[1748996033907,3.2078,2596.2,2595.8,0.76994]
[1748996033908,0.76989,2596.1,2595.8,0.76994]
[1748996034109,0.76989,2596.1,2595.9,0.76991]
[1748996034405,0.76988,2596.1,2595.6,4.71]
[1748996034607,0.76988,2596.1,2595.9,0.76991]
[1748996034802,0.76988,2596.1,2595.8,0.76994]
[1748996035009,0.7699,2596.0,2595.8,0.76994]
[1748996035210,0.76993,2595.9,2595.7,0.76997]
[1748996035401,0.76999,2595.8,2595.6,5.48001]
[1748996035602,0.76998,2595.8,2595.6,5.48001]
[1748996035918,0.76998,2595.8,2595.6,5.48]
[1748996036304,0.76995,2595.9,2595.7,0.76999]
[1748996036507,1.2591,2596.1,2595.7,0.76997]
[1748996036706,1.2591,2596.1,2595.8,0.76994]
[1748996036896,1.2591,2596.1,2596.0,0.7699]
[1748996036897,0.6228,2596.1,2596.0,0.7699]
[1748996037103,3.97767,2596.2,2596.1,0.76987]
[1748996037302,3.97767,2596.2,2595.6,6.63502]
[1748996037506,3.97767,2596.2,2596.0,0.76988]
[1748996038004,0.76987,2596.1,2596.0,0.76988]
[1748996039406,0.76986,2596.2,2596.0,0.76988]
[1748996039714,0.76992,2596.0,2595.8,0.76994]
[1748996039903,0.77555679,2596.4,2596.1,0.76987]
[1748996040206,0.77555679,2596.4,2596.2,0.76984]
[1748996040412,0.77555679,2596.4,2596.1,0.76985]
[1748996040710,0.77555679,2596.4,2596.2,0.76984]
[1748996041011,0.00576679,2596.4,2596.3,0.76981]
[1748996041211,0.00576679,2596.4,2596.2,0.76982]
[1748996041418,0.00576679,2596.4,2596.3,0.76981]
[1748996041710,0.77555679,2596.4,2596.2,0.76983]
[1748996042110,0.00576679,2596.4,2596.2,0.76983]
[1748996043308,0.77555679,2596.4,2596.2,0.76983]
[1748996043508,0.76982,2596.3,2596.1,0.76985]